[Event "EICC 2025"]
[Site "Eforie-Nord"]
[Date "2025.03.17"]
[Round "3.39"]
[White "Santos Latasa, Jaime"]
[Black "Sanikidze, Tornike"]
[Result "1-0"]
[Annotator "TA"]
[ECO "C54"]
[WhiteElo "2627"]
[BlackElo "2452"]
[PlyCount "95"]
[EventDate "2025.03.14"]
[EventType "swiss"]
[EventCountry "ROU"]
[SourceTitle "playchess.com"]
[Source "ChessBase"]
[SourceQuality "1"]
[TimeControl "40/5400+30:1800+30"]

{[%evp 9,95,9,25,20,31,31,30,3,37,36,37,26,37,-58,-67,-59,-65,-66,-60,-156,-131,-141,-93,-73,0,0,0,0,0,0,0,-65,-70,-74,-58,-80,-7,-80,-45,-60,77,87,246,-32,-20,-40,-7,-29,221,184,215,195,239,247,229,220,262,268,358,352,710,536,497,517,1051,1061,1793,637,647,647,646,647,647,647,631,628,647,647,871,849,829,798,4910,613,4962,4962,29982,29983]} 1. e4 {[%emt 0:00:06]} e5 {[%emt 0:00:46]} 2. Nf3 {[%emt 0:00:05]} Nc6 {[%emt 0:00:36]} 3. Bc4 {[%emt 0:00:19]} Bc5 {[%emt 0:02:35]} 4. c3 {[%emt 0:00:51]} Nf6 {[%emt 0:01:45]} 5. d3 {[%emt 0:00:20]} a5 {[%emt 0:01:21]} 6. O-O {[%emt 0:01:12] C54: Giuoco Piano: 4 c3 Nf6, main lines with 5 d4 and 5 d3.} d6 {[%emt 0:01:32]} 7. Bg5 {[%emt 0:05:01][%cal Bc1g5,Bg5h4,Bh4g3][%mdl 32]} h6 {[%emt 0:03:34]} 8. Bh4 {[%emt 0:02:04] White has an edge.} Ba7 {[%emt 0:02:57] is currently scoring better than 8...g5.} 9. Re1 {[%emt 0:00:36]} g5 {[%emt 0:02:34]} 10. Bg3 {[%emt 0:00:53]} Nh7 {[%emt 0:10:49]} 11. Nbd2 {[%emt 0:06:15]} (11. d4 $14) 11... h5 $1 $15 {[%emt 0:05:20]} 12. h4 {[%emt 0:11:19]} g4 {[%emt 0:04:00]} 13. Nh2 {[%emt 0:00:13]} Nf8 $1 {[%emt 0:00:40]} 14. Kh1 $146 {[%emt 0:01:32]} (14. Qb3 $15) (14. d4 Ng6 15. dxe5 Ncxe5 16. Bxe5 dxe5 17. g3 Nxh4 18. gxh4 g3 19. Kh1 gxh2 20. Nf3 Qxd1 21. Rexd1 {0-1 Gaboyan,S (2192)-Guichard,P (2362) EU-ch (Women) 24th 2024 (5)}) 14... Ng6 $17 {[%emt 0:08:57]} 15. Rf1 {[%emt 0:00:37] [#]} Nxh4 {[%emt 0:06:46]} ({Better is} 15... f5 $1 {[%cal Rf5f4] and ...f4 would now be decisive} 16. exf5 Nxh4) 16. f4 {[%emt 0:00:28]} Ng6 {[%emt 0:15:21]} (16... Rh7 $17) 17. fxe5 $1 $11 {[%emt 0:03:50]} Ncxe5 {[%emt 0:01:55]} 18. Bb3 {[%emt 0:01:03]} O-O {[%emt 0:20:38]} (18... Nxd3 $2 19. Bxf7+ (19. Rxf7 $2 h4 $19) 19... Kf8 20. Bxg6+ $18) (18... h4 19. Bxe5 Nxe5 20. d4 $14) 19. d4 {[%emt 0:02:05]} Nc6 {[%emt 0:01:21][%cal Oa5a4]} 20. Nc4 {[%emt 0:06:50]} (20. Qe2 $11) 20... Qg5 {[%emt 0:03:55]} 21. Qd3 {[%emt 0:01:09]} Nce7 {[%emt 0:02:46][%cal Oa5a4]} (21... h4 22. Be1 $11) 22. Ne3 {[%emt 0:01:03]} Be6 {[%emt 0:00:08]} (22... h4 $6 23. Be1 $14) (22... Bd7 $17 23. Rad1 a4) 23. Bc2 {[%emt 0:00:49]} (23. Nf5 $11 {remains equal.}) 23... b5 {[%emt 0:01:04]} 24. a4 {[%emt 0:02:39]} h4 {[%emt 0:00:17]} (24... b4 $1 $15) 25. Be1 $16 {[%emt 0:00:39]} g3 $2 {[%emt 0:00:03] [#]} (25... Kh8 $16 {keeps fighting.}) 26. Nf3 $2 {[%emt 0:00:33]} (26. Bd2 $1 $18 Qh5 (26... gxh2 $2 27. Nd5 $18) 27. Bd1) 26... Qh5 $15 {[%emt 0:00:15]} 27. Ng1 {[%emt 0:02:24]} (27. axb5 Nf4 28. Qd2 h3 (28... Qxb5 29. Nxh4 Nfg6 30. Nhf5 $16) 29. gxh3 Qxh3+ (29... Bxh3 30. Bxg3 $17) 30. Nh2 Nfg6 (30... Qxh2+ 31. Qxh2 gxh2 32. Rxf4 $18) 31. Bxg3 Qxg3 $17) 27... h3 {[%emt 0:00:11] ( -> ...hxg2+)} (27... b4 $5) 28. Bxg3 {[%emt 0:00:24]} (28. axb5 hxg2+ 29. Kxg2 Qh2+ 30. Kf3 Nh4+ 31. Kf4 Neg6+ (31... g2+ $2 32. Kg5 $19) 32. Kg5 Nf3+ (32... g2 $2 33. Nxg2 Qxg2+ 34. Bg3 $19) 33. Nxf3 f6+ 34. Kxg6 Qh7#) 28... Kg7 $2 {[%emt 0:01:49]} (28... hxg2+ $11 {and Black has nothing to worry.} 29. Kxg2 Rab8) 29. gxh3 {[%emt 0:04:50]} (29. Qxb5 c5 $11) (29. axb5 $6 Rh8 $16) 29... Bxh3 {[%emt 0:00:09]} 30. Nxh3 {[%emt 0:00:07]} (30. Qxb5 $2 {is the wrong capture.} Qh6 (30... Bxf1+ 31. Qxh5 Rh8 32. Qh2 $16) 31. Nxh3 Qxh3+ 32. Bh2 Qxe3 $19) 30... Qxh3+ {[%emt 0:00:03]} 31. Bh2 {[%emt 0:00:06]} Rh8 {[%emt 0:00:41][%csl Gh8][%cal Rh3h2]} 32. Rf2 {[%emt 0:03:47]} b4 {[%emt 0:01:09]} 33. Raf1 {[%emt 0:01:10]} f6 {[%emt 0:00:12]} 34. Rg1 {[%emt 0:00:54][%cal Oe4e5]} Kf7 $2 {[%emt 0:00:35]} (34... Kf8 35. Rxf6+ Ke8) 35. Qc4+ {[%emt 0:06:11]} Ke8 {[%emt 0:00:43]} 36. Nd5 {[%emt 0:00:34]} ({Avoid the trap} 36. Rg3 $2 Qxg3 37. Qe2 Nf4 $19) 36... Nxd5 {[%emt 0:00:20]} (36... Rc8 $142 37. Nxe7 (37. cxb4 Ne5 $16) (37. Nxf6+ Kd8 $18) (37. Nxc7+ Kd7 $18) 37... Nxe7) 37. Qxd5 $18 {[%emt 0:01:30]} Qe3 {[%emt 0:00:01]} 38. Rxg6 {[%emt 0:04:33]} (38. Qxa8+ Ke7 39. Qxa7 Rxh2+ 40. Kxh2 (40. Rxh2 Qf3+ 41. Rhg2 Qh5+ 42. Rh2 Qf3+ 43. Rgg2 Qf1+ 44. Rg1 Qf3+ $11) 40... Qxf2+ 41. Kh1 Qf3+ 42. Rg2 Qf1+ 43. Kh2 Qf4+ 44. Rg3 Qf2+ 45. Rg2 Qf4+ 46. Rg3 Qf2+ 47. Kh1 Qxg3 48. Qxc7+ Kf8 $11) (38. Qc6+ $142 Kd8 39. Rxg6 (39. Qxa8+ Ke7 $14)) 38... Qxf2 {[%emt 0:01:10][%csl Gf2][%cal Rh8h2]} 39. Qxa8+ {[%emt 0:00:15]} Kf7 {[%emt 0:00:18][%cal Be8f7,Bf7g6,Bg6h6,Bh6g7][%mdl 32]} 40. Qxh8 {[%emt 0:00:11]} Kxg6 {[%emt 0:00:18]} 41. Qg8+ {[%emt 0:30:17]} Kh6 {[%emt 0:30:08]} 42. Qg2 {[%emt 0:00:18]} Qe1+ {[%emt 0:00:04]} 43. Bg1 {[%emt 0:00:33]} bxc3 {[%emt 0:01:21]} 44. Qh3+ {[%emt 0:00:08]} Kg7 {[%emt 0:00:26]} 45. bxc3 {[%emt 0:00:29] Hoping for Qg4+.} c5 {[%emt 0:00:02]} 46. Qe3 {[%emt 0:02:10]} Qf1 {[%emt 0:00:00]} 47. Qg3+ {[%emt 0:00:00]} Kf7 {[%emt 0:00:00]} 48. Bd3 {[%emt 0:00:00] Never resign too early!   Weighted Error Value: White=0.48/Black=1.07  Loses game:     	---       	Black=1      Missed win:     	White=1     	---        Mistake:       	White=4     	Black=7      Inaccurate:     	---       	Black=5      OK:         	White=13    	Black=7      Best:        	White=3     	Black=3      Strong:       	White=1     	Black=2} (48. Qxd6 Qf3+ 49. Kh2 Qe2+ 50. Kh3 Qxc2 $16) 1-0

[Event "EICC 2025"]
[Site "Eforie-Nord"]
[Date "2025.03.17"]
[Round "3.39"]
[White "Mosesov, Danyil"]
[Black "Hryzlova, Sofiia"]
[Result "1-0"]
[Annotator "RC"]
[ECO "D50"]
[WhiteElo "2462"]
[BlackElo "2258"]
[PlyCount "77"]
[EventDate "2025.03.14"]
[EventType "swiss"]
[EventCountry "ROU"]
[SourceTitle "playchess.com"]
[Source "ChessBase"]
[SourceQuality "1"]
[TimeControl "40/5400+30:1800+30"]

1. d4 {[%emt 0:00:02]} Nf6 {[%emt 0:00:10]} 2. c4 {[%emt 0:00:04]} e6 {[%emt 0:00:05]} 3. Nc3 {[%emt 0:00:04]} d5 {[%emt 0:00:11]} 4. Nf3 {[%emt 0:00:05]} c5 {[%emt 0:00:04]} 5. cxd5 {[%emt 0:00:55]} cxd4 {[%emt 0:00:07]} 6. Qxd4 {[%emt 0:00:11]} exd5 {[%emt 0:00:11]} 7. Bg5 {[%emt 0:00:07]} Be7 {[%emt 0:00:08]} 8. e3 {[%emt 0:00:06]} O-O {[%emt 0:00:09]} 9. Be2 {[%emt 0:00:22]} h6 {[%emt 0:00:59]} 10. Bh4 {[%emt 0:00:24]} Nc6 {[%emt 0:00:40]} 11. Qd3 {[%emt 0:00:04]} Qb6 {[%emt 0:00:37]} 12. O-O {[%emt 0:02:42]} Rd8 {[%emt 0:05:09]} 13. Rfd1 {[%emt 0:13:45]} Be6 {[%emt 0:01:14]} 14. a3 {[%emt 0:01:33]} Rac8 {[%emt 0:02:50]} 15. b4 {[%emt 0:12:24]} a6 {[%emt 0:10:35]} 16. h3 {[%emt 0:08:00]} Qc7 {[%emt 0:12:27]} 17. Rac1 {[%emt 0:03:17]} b5 {[%emt 0:03:01]} 18. Bf1 {[%emt 0:09:22]} Ne8 {[%emt 0:15:00]} 19. Nxb5 {[%emt 0:11:33]} axb5 {[%emt 0:11:05]} 20. Rxc6 {[%emt 0:00:18]} Qxc6 {[%emt 0:00:26]} 21. Bxe7 {[%emt 0:00:06]} Nd6 {[%emt 0:00:13]} 22. Bxd8 {[%emt 0:00:55]} Rxd8 {[%emt 0:00:08]} 23. Nd4 {[%emt 0:01:01]} Qa6 {[%emt 0:00:20]} 24. Nxe6 {[%emt 0:04:55]} fxe6 {[%emt 0:00:07]} 25. Qg6 {[%emt 0:00:02]} Nc4 {[%emt 0:02:01]} 26. Rd4 {[%emt 0:02:16]} Ne5 {[%emt 0:04:53]} 27. Qg3 {[%emt 0:00:19]} Nc6 {[%emt 0:05:27]} 28. Rg4 {[%emt 0:00:14]} Rd7 {[%emt 0:00:21]} 29. Rg6 {[%emt 0:01:41]} Nd8 {[%emt 0:04:31]} 30. Rxh6 {[%emt 0:01:32]} Qxa3 {[%emt 0:01:01]} 31. Qg6 {[%emt 0:00:56]} Re7 {[%emt 0:00:38]} 32. Bd3 {[%emt 0:01:34]} Nf7 {[%emt 0:00:47]} 33. Rh4 {[%emt 0:00:41]} Qa1+ {[%emt 0:00:40]} 34. Kh2 {[%emt 0:00:07]} Qe5+ {[%emt 0:00:17]} 35. g3 {[%emt 0:03:01]} Kf8 {[%emt 0:06:07]} 36. Rf4 {[%emt 0:00:36]} Rc7 {[%emt 0:01:10]} 37. h4 {[%emt 0:02:30]} Kg8 {[%emt 0:01:14]} 38. Qh7+ {[%emt 0:00:37]} Kf8 {[%emt 0:00:06]} 39. Bg6 {[%emt 0:00:05]} 1-0

[Event "EICC 2025"]
[Site "Eforie-Nord"]
[Date "2025.03.17"]
[Round "3.40"]
[White "Bodrogi, Bendeguz"]
[Black "Svane, Rasmus"]
[Result "1/2-1/2"]
[Annotator "TA"]
[ECO "A46"]
[WhiteElo "2460"]
[BlackElo "2627"]
[PlyCount "61"]
[EventDate "2025.03.14"]
[EventType "swiss"]
[EventCountry "ROU"]
[SourceTitle "playchess.com"]
[Source "ChessBase"]
[SourceQuality "1"]
[TimeControl "40/5400+30:1800+30"]

{[%evp 10,61,16,18,27,26,36,12,14,7,-3,7,47,47,41,33,41,41,46,30,47,21,26,23,64,28,50,43,54,27,61,59,63,56,51,58,59,37,44,50,69,54,73,64,81,75,89,36,64,47,52,62,55,42]} 1. Nf3 {[%emt 0:02:33]} Nf6 {[%emt 0:00:05]} 2. g3 {[%emt 0:01:01]} b5 {[%emt 0:00:12]} 3. Bg2 {[%emt 0:02:06]} Bb7 {[%emt 0:00:03]} 4. d4 {[%emt 0:00:29]} e6 {[%emt 0:00:15]} 5. Bg5 {[%emt 0:02:02]} Be7 {[%emt 0:01:51]} 6. O-O {[%emt 0:01:22]} h6 {[%emt 0:06:51] A46: 1 d4 Nf6 2 Nf3 e6: Torre, London and Colle Systems.} 7. Bxf6 {[%emt 0:00:21]} Bxf6 {[%emt 0:00:02]} 8. Re1 $146 {[%emt 1:24:36]} (8. c3 d6 9. Nbd2 O-O 10. a4 a6 11. e4 Nd7 12. Qe2 Bc6 13. axb5 axb5 14. h4 {½-½ Shuvalova,P (2487)-Hou,Y (2633) Julius Baer WSCC Blitz 2024 (2.4)}) 8... c5 {[%emt 0:12:40] The position is equal.} 9. e4 {[%emt 0:00:00]} O-O {[%emt 0:12:43]} 10. Nc3 {[%emt 0:00:00][%cal Bb1c3,Bc3b5,Bb5d6,Bd6c4,Bc4e5][%mdl 32]} cxd4 {[%emt 0:13:20]} 11. Nxb5 {[%emt 0:00:00][%cal Ob5d6]} e5 {[%emt 0:02:57][%csl Oa7,Od7] Black has weak pawns} 12. Nd6 {[%emt 0:00:00]} Bc6 {[%emt 0:04:03]} 13. Rc1 {[%emt 0:00:00]} Na6 {[%emt 0:18:51][%cal Bb8a6,Ba6c5,Bc5e6][%mdl 32]} 14. c3 {[%emt 0:00:00][%cal Rc3d4]} Qb8 {[%emt 0:02:11][%csl LRb2,LRd6]} 15. Nc4 {[%emt 0:00:00] A dynamic duo of knights.} dxc3 {[%emt 0:01:00]} 16. Rxc3 {[%emt 0:00:00]} Rd8 {[%emt 0:06:15]} 17. Qe2 {[%emt 0:00:00]} Nc5 {[%emt 0:03:46] [#]} 18. Ncxe5 $1 {[%emt 0:00:00]} Bb5 {[%emt 0:00:22]} (18... Bxe5 19. Rxc5 Re8 (19... Bxb2 $2 20. Rb1 $18) 20. Nxe5 Rxe5 21. Rc3 $11) 19. Qc2 {[%emt 0:00:00]} Ne6 {[%emt 0:04:29]} 20. a4 $1 {[%emt 0:00:00]} Bxe5 {[%emt 0:00:33]} 21. Nxe5 {[%emt 0:00:00]} Qxe5 {[%emt 0:00:49]} 22. axb5 {[%emt 0:00:00]} Qxb5 {[%emt 0:00:24]} 23. Rd1 {[%emt 0:00:00]} Rab8 {[%emt 0:00:27]} 24. b3 {[%emt 0:00:00]} Qb6 {[%emt 0:02:51]} 25. Bf1 {[%emt 0:00:00]} Nd4 {[%emt 0:00:38]} 26. Qd3 {[%emt 0:00:00]} Nc6 {[%emt 0:00:58]} (26... Nxb3 $2 {perishes.} 27. Rb1 $18) 27. Qd6 {[%emt 0:00:00] White attacks} Rbc8 {[%emt 0:02:16]} 28. Rf3 {[%emt 0:00:00]} ({White should try} 28. Bh3 $16) 28... Qc7 {[%emt 0:00:35] White is slightly better.} 29. Rf5 {[%emt 0:00:30] White is much more active.} Qxd6 {[%emt 0:01:35]} 30. Rxd6 {[%emt 0:00:08] Threatens to win with Bc4.} Kf8 {[%emt 0:00:07]} 31. Rd2 {[%emt 0:02:56] Weighted Error Value: White=0.11 (very precise) /Black=0.11 (very precise)   Mistake:       	White=1     	---        Inaccurate:     	White=3     	Black=4      OK:         	White=11    	Black=8      Best:        	---       	Black=1      Strong:       	White=1     	---} 1/2-1/2

[Event "EICC 2025"]
[Site "Eforie-Nord"]
[Date "2025.03.17"]
[Round "3.40"]
[White "Uritsky, Yonathan"]
[Black "Kalogeris, Ioannis"]
[Result "0-1"]
[Annotator "RC"]
[ECO "C78"]
[WhiteElo "2285"]
[BlackElo "2454"]
[PlyCount "96"]
[EventDate "2025.03.14"]
[EventType "swiss"]
[EventCountry "ROU"]
[SourceTitle "playchess.com"]
[Source "ChessBase"]
[SourceQuality "1"]
[TimeControl "40/5400+30:1800+30"]

1. e4 {[%emt 0:00:08]} e5 {[%emt 0:00:15]} 2. Nf3 {[%emt 0:00:19]} Nc6 {[%emt 0:00:07]} 3. Bb5 {[%emt 0:00:08]} a6 {[%emt 0:01:16]} 4. Ba4 {[%emt 0:00:13]} Nf6 {[%emt 0:00:13]} 5. O-O {[%emt 0:00:24]} b5 {[%emt 0:00:40]} 6. Bb3 {[%emt 0:00:07]} Bc5 {[%emt 0:00:16]} 7. a4 {[%emt 0:00:56]} Rb8 {[%emt 0:00:14]} 8. c3 {[%emt 0:00:52]} d6 {[%emt 0:00:10]} 9. d4 {[%emt 0:00:07]} Bb6 {[%emt 0:00:06]} 10. a5 {[%emt 0:00:14]} Ba7 {[%emt 0:00:06]} 11. h3 {[%emt 0:00:06]} O-O {[%emt 0:01:06]} 12. Be3 {[%emt 0:00:08]} Ra8 {[%emt 0:01:07]} 13. Nbd2 {[%emt 0:01:14]} Bb7 {[%emt 0:00:37]} 14. Re1 {[%emt 0:07:25]} Kh8 {[%emt 0:15:26]} 15. Nf1 {[%emt 0:04:14]} exd4 {[%emt 0:06:43]} 16. cxd4 {[%emt 0:00:09]} d5 {[%emt 0:00:13]} 17. e5 {[%emt 0:03:15]} Ne4 {[%emt 0:00:14]} 18. Ng3 {[%emt 0:06:50]} Nxg3 {[%emt 0:09:48]} 19. fxg3 {[%emt 0:00:02]} f6 {[%emt 0:01:53]} 20. Bc2 {[%emt 0:22:18]} fxe5 {[%emt 0:02:16]} 21. Nxe5 {[%emt 0:00:36]} Nxe5 {[%emt 0:02:26]} 22. Qh5 {[%emt 0:00:21]} g6 {[%emt 0:00:23]} 23. Qxe5+ {[%emt 0:00:10]} Kg8 {[%emt 0:09:07]} 24. Rac1 {[%emt 0:10:52]} Re8 {[%emt 0:12:53]} 25. Qf4 {[%emt 0:00:09]} c6 {[%emt 0:05:48]} 26. Kh2 {[%emt 0:08:57]} Re7 {[%emt 0:11:34]} 27. b4 {[%emt 0:07:21]} Rf7 {[%emt 0:01:57]} 28. Qh6 {[%emt 0:01:22]} Qf8 {[%emt 0:02:40]} 29. Qxf8+ {[%emt 0:04:25]} Raxf8 {[%emt 0:00:11]} 30. Bh6 {[%emt 0:01:09]} Bxd4 {[%emt 0:01:43]} 31. Bxf8 {[%emt 0:00:04]} Kxf8 {[%emt 0:00:21]} 32. Bb3 {[%emt 0:01:54]} Bb2 {[%emt 0:01:01]} 33. Rc2 {[%emt 0:00:30]} Bd4 {[%emt 0:07:17]} 34. g4 {[%emt 0:01:49]} Re7 {[%emt 0:00:59]} 35. Rd1 {[%emt 0:06:31]} Be5+ {[%emt 0:00:03]} 36. Kg1 {[%emt 0:02:17]} Bd6 {[%emt 0:00:10]} 37. Rf1+ {[%emt 0:04:40]} Ke8 {[%emt 0:00:20]} 38. Rf6 {[%emt 0:03:19]} Kd7 {[%emt 0:00:05]} 39. h4 {[%emt 0:00:31]} Bxb4 {[%emt 0:00:54]} 40. h5 {[%emt 0:00:30]} gxh5 {[%emt 0:02:11]} 41. gxh5 {[%emt 0:30:01]} Bxa5 {[%emt 0:33:11]} 42. g4 {[%emt 0:00:42]} Bb6+ {[%emt 0:00:30]} 43. Kf1 {[%emt 0:01:02]} Bd4 {[%emt 0:00:00]} 44. Rf8 {[%emt 0:00:00]} a5 {[%emt 0:00:00]} 45. Rc1 {[%emt 0:00:00]} a4 {[%emt 0:00:00]} 46. Bc2 {[%emt 0:00:00]} a3 {[%emt 0:00:00]} 47. Bb3 {[%emt 0:00:00]} b4 {[%emt 0:00:00]} 48. g5 {[%emt 0:00:00]} Be3 {[%emt 0:00:00]} 0-1

[Event "EICC 2025"]
[Site "Eforie-Nord"]
[Date "2025.03.17"]
[Round "3.41"]
[White "Rodshtein, Maxim"]
[Black "Levin, Guy"]
[Result "1-0"]
[Annotator "TA"]
[ECO "A25"]
[WhiteElo "2623"]
[BlackElo "2450"]
[PlyCount "122"]
[EventDate "2025.03.14"]
[EventType "swiss"]
[EventCountry "ROU"]
[SourceTitle "playchess.com"]
[Source "ChessBase"]
[SourceQuality "1"]
[TimeControl "40/5400+30:1800+30"]

{[%evp 14,122,-5,-15,8,7,13,6,2,-12,-7,-2,28,1,0,1,7,7,12,0,7,7,7,7,2,6,16,12,7,26,18,0,18,18,21,22,27,25,44,32,40,0,47,0,32,40,32,32,32,32,32,31,32,32,32,14,0,0,32,29,32,32,33,36,40,37,45,40,47,26,15,15,26,17,77,66,70,16,15,12,45,55,64,64,66,12,374,374,403,386,439,437,437,423,419,419,370,368,279,355,431,398,493,436,5443,5364,5110,1878,1070,284,291]} 1. c4 {[%emt 0:00:05]} e5 {[%emt 0:00:26]} 2. g3 {[%emt 0:00:40]} Nc6 {[%emt 0:00:49]} 3. Bg2 {[%emt 0:00:16]} g6 {[%emt 0:00:08]} 4. Nc3 {[%emt 0:00:35]} Bg7 {[%emt 0:00:06]} 5. Rb1 {[%emt 0:06:44]} a5 {[%emt 0:00:21]} 6. a3 {[%emt 0:00:20][%cal Ba2a3,Ba3b4,Bb4b5][%mdl 32]} d6 {[%emt 0:02:26]} 7. b4 {[%emt 0:02:52]} axb4 {[%emt 0:00:06]} 8. axb4 {[%emt 0:00:04]} Nge7 {[%emt 0:07:04] A25: English Opening vs King's Indian with ...Nc6 but without early d3.} 9. d3 {[%emt 0:17:16]} O-O {[%emt 0:04:03]} 10. b5 {[%emt 0:13:12]} Nd4 {[%emt 0:02:18][%cal Bc6d4,Bd4e6,Be6c5][%mdl 32] The position is equal.} 11. e3 {[%emt 0:00:52][%cal Be2e3,Be3e4][%mdl 32]} Ne6 {[%emt 0:00:15]} 12. Nge2 {[%emt 0:00:14]} Nc5 {[%emt 0:10:01]} 13. O-O {[%emt 0:08:45]} Bf5 {[%emt 0:01:29]} 14. e4 {[%emt 0:00:21]} Be6 {[%emt 0:07:17]} 15. Be3 {[%emt 0:01:08]} Qd7 {[%emt 0:12:59]} 16. Qc2 $146 {[%emt 0:05:36]} ({Predecessor:} 16. Nd5 Ra3 17. Bxc5 dxc5 18. Rb3 Rfa8 19. Qc2 b6 20. Rxa3 Rxa3 21. Nec3 Bxd5 22. exd5 Nf5 23. Qb2 Rxc3 24. Qxc3 {1-0 Del Puerto,R (2163)-Heinechen,J (1884) Asuncion Clasificatorio op 3rd 2016 (7.1)}) 16... Ra3 {[%emt 0:05:32]} 17. Ra1 {[%emt 0:16:43]} Rfa8 {[%emt 0:01:37]} 18. Rxa3 {[%emt 0:00:27]} Rxa3 {[%emt 0:00:02]} 19. Qb2 {[%emt 0:06:30]} Ra5 {[%emt 0:03:04]} 20. Rd1 {[%emt 0:01:16]} b6 {[%emt 0:04:42]} 21. Nc1 {[%emt 0:04:02][%cal Be2c1,Bc1a2,Ba2b4,Bb4a6][%mdl 32]} Qe8 {[%emt 0:10:12]} 22. N1a2 {[%emt 0:00:30]} h6 {[%emt 0:00:57]} 23. Nb4 {[%emt 0:00:57]} Qa8 {[%emt 0:00:41]} 24. h4 {[%emt 0:02:33]} Qa7 {[%emt 0:06:22]} 25. Kh2 {[%emt 0:00:18]} Ra3 {[%emt 0:01:08]} 26. Na6 {[%emt 0:02:34]} Ra5 {[%emt 0:00:54]} 27. Nb4 {[%emt 0:03:01]} Ra3 {[%emt 0:00:02]} 28. Na6 {[%emt 0:00:38]} Ra5 {[%emt 0:00:01]} 29. Nxc5 {[%emt 0:00:43]} dxc5 {[%emt 0:01:44]} 30. Bh3 {[%emt 0:00:11]} Bxh3 {[%emt 0:03:53]} 31. Kxh3 {[%emt 0:00:02][%cal Bh2h3,Bh3g2,Bg2f1,Bf1e2][%mdl 32]} h5 {[%emt 0:00:07]} 32. Bg5 {[%emt 0:02:23]} f6 {[%emt 0:01:18]} 33. Bd2 {[%emt 0:00:18] [#] Nd5 is the strong threat.} Kh7 {[%emt 0:00:33]} 34. Be1 {[%emt 0:01:53]} Qa8 {[%emt 0:02:36]} 35. Qe2 {[%emt 0:00:34]} Ra1 {[%emt 0:04:44]} 36. Kg2 {[%emt 0:00:53]} Rxd1 {[%emt 0:02:10]} 37. Qxd1 {[%emt 0:00:05]} Qd8 {[%emt 0:01:24]} 38. Qf3 {[%emt 0:01:58]} Qd6 {[%emt 0:00:56]} 39. Kf1 {[%emt 0:00:16]} Bh6 {[%emt 0:00:13]} 40. Ke2 {[%emt 0:00:09]} Kg7 {[%emt 0:05:11]} 41. g4 {[%emt 0:32:21]} (41. Nd5 {simplifies} Nxd5 42. exd5 Qd8 43. Qe4) 41... hxg4 {[%emt 0:09:05]} 42. Qxg4 {[%emt 0:00:00]} f5 {[%emt 0:03:28]} 43. Qh3 {[%emt 0:00:00]} Kf7 {[%emt 0:06:02]} (43... Qf6 $11) 44. h5 $16 {[%emt 0:00:00]} Qf6 {[%emt 0:02:11]} 45. Nd5 {[%emt 0:00:00]} (45. hxg6+ $14 Kxg6 46. Qh1) 45... Nxd5 $11 {[%emt 0:00:42]} 46. cxd5 {[%emt 0:00:00][%mdl 4096] Endgame KQB-KQB} Qg5 {[%emt 0:03:51]} 47. Bc3 {[%emt 0:00:00]} Qf4 {[%emt 0:06:11]} 48. hxg6+ {[%emt 0:00:00]} Kxg6 {[%emt 0:00:02]} 49. Qg3+ $1 {[%emt 0:00:23]} Kf7 $2 {[%emt 0:02:51][%mdl 8192] [#] This move loses the game for Black.} (49... Kf6 $1 $11 {and Black stays safe.}) 50. Bxe5 $18 {[%emt 0:03:14]} Qd2+ {[%emt 0:00:01]} 51. Kf1 {[%emt 0:00:06]} c4 {[%emt 0:00:03]} 52. dxc4 {[%emt 0:00:55]} Qc1+ {[%emt 0:00:02]} 53. Kg2 {[%emt 0:00:16]} Qxc4 {[%emt 0:00:02]} 54. Qf3 {[%emt 0:00:24]} ({Less strong is} 54. Bxc7 f4 55. Qh3 (55. Bxf4 $2 {too greedy.} Qxe4+ 56. Qf3 Qxf4 $19) 55... Qxe4+ 56. Qf3 Qf5 $18) (54. exf5 Qe4+ 55. Kh2 Qxf5 $16) 54... Qxe4 {[%emt 0:00:10]} 55. Qxe4 {[%emt 0:00:53]} ({Don't play} 55. Bxc7 Ke7 56. Qxe4+ (56. Bxb6 Qe5 $18) 56... fxe4 57. Bxb6 Kd6) 55... fxe4 {[%emt 0:00:02]} 56. Bxc7 {[%emt 0:00:09] KB-KB. White is a pawn up.} Ke7 {[%emt 0:01:14]} 57. f3 {[%emt 0:01:36]} Kd7 {[%emt 0:01:30]} 58. Bxb6 {[%emt 0:00:17]} exf3+ {[%emt 0:00:07]} (58... e3 $142 59. Bc5 Bf4) 59. Kxf3 {[%emt 0:00:05]} Bf8 {[%emt 0:00:10]} 60. Ke4 {[%emt 0:00:13]} Bd6 {[%emt 0:00:02]} 61. Kd4 $2 {[%emt 0:00:34]} (61. Be3 Be7 62. b6) 61... Bh2 {[%emt 0:00:15] Weighted Error Value: White=0.21 (precise) /Black=0.36  Loses game:     	---       	Black=1      Mistake:       	White=1     	Black=2      Inaccurate:     	White=1     	Black=3      OK:         	White=16    	Black=16     Best:        	White=6     	Black=5      Strong:       	White=1     	---} 1-0